bitfinex/quotes_ETHUSD_20241120
["timestamp","ask_amount","ask_price","bid_price","bid_amount"]
[1732084288411,0.832,3111.6,3110.9,0.7515]
[1732084288700,3.21427,3111.2,3110.9,0.7515]
[1732084289049,3.21434,3111.1,3111.0,0.06373285]
[1732084289666,3.21434,3111.1,3111.0,0.55]
[1732084290212,3.21434,3111.1,3110.8,0.55]
[1732084290501,3.21459,3110.9,3110.8,0.55]
[1732084291088,3.21434,3111.1,3110.8,0.55]
[1732084291694,3.21412,3111.3,3110.8,3.98015]
[1732084291861,3.21412,3111.3,3110.8,4.04443312]
[1732084292179,3.21412,3111.3,3110.8,3.98015]
[1732084293168,3.21388,3111.5,3110.9,0.7515]
[1732084293377,3.214,3111.4,3111.0,0.55]
[1732084293563,3.2141,3111.3,3111.0,0.55]
[1732084294286,3.21419,3111.2,3111.0,0.55]
[1732084296107,3.21419,3111.2,3111.1,0.06375014]
[1732084296401,3.21419,3111.2,3111.1,0.61375014]
[1732084302987,3.21406,3111.4,3111.2,0.55]
[1732084303193,3.21409,3111.3,3111.2,0.55]
[1732084303905,3.21409,3111.3,3111.0,0.55]
[1732084304705,3.21406,3111.4,3111.0,0.55]
[1732084305003,3.21419,3111.2,3111.0,0.98657836]
[1732084305299,3.21406,3111.4,3111.0,0.98657836]
[1732084305707,3.2138,3111.6,3111.2,0.55]
[1732084306011,3.21398,3111.5,3111.2,0.55]
[1732084306385,3.2138,3111.6,3111.2,0.55]
[1732084306386,3.21373,3111.7,3111.2,0.55]
[1732084306591,3.21378,3111.6,3111.4,0.55]
[1732084307073,3.21362,3111.8,3111.4,0.55]
[1732084307273,3.21362,3111.8,3111.4,0.61427349]
[1732084307704,3.21386,3111.6,3111.4,0.61427349]
[1732084307906,3.21388,3111.5,3111.4,0.55]
[1732084311105,3.21388,3111.5,3111.4,0.61368808]
[1732084311308,3.21388,3111.5,3111.4,0.55]
[1732084311484,3.21441,3111.0,3110.9,0.55]
[1732084311877,3.21441,3111.0,3110.9,0.78834075]
[1732084312620,3.21441,3111.0,3110.9,0.55]
[1732084312771,3.21441,3111.0,3110.4,0.7721]
[1732084312977,3.21466,3110.8,3110.5,0.62151]
[1732084314023,3.21466,3110.8,3110.6,0.55]
[1732084314315,3.21471,3110.7,3110.5,0.62151]
[1732084314484,3.21491,3110.5,3110.4,0.7721]
[1732084315099,3.21491,3110.5,3110.2,0.7721]
[1732084315313,3.21512,3110.3,3110.2,0.7721]
[1732084315619,3.21523,3110.2,3109.8,0.7721]
[1732084315797,0.8196,3110.8,3109.8,1.71620554]
[1732084316122,6.11084663,3111.0,3109.7,1.33160351]
[1732084316123,3.21564,3109.8,3109.7,1.33160351]
[1732084316414,3.21553,3109.9,3109.7,1.33160351]
[1732084317244,3.21564,3109.8,3109.7,1.33160351]
[1732084317525,3.21536,3110.1,3109.7,1.88160351]
[1732084317682,3.21564,3109.8,3109.7,1.33160351]
[1732084318122,4.03524,3109.8,3109.7,1.33160351]
[1732084319287,3.21564,3109.8,3109.7,1.33160351]
[1732084319482,0.8196,3110.1,3109.8,0.55]
[1732084319719,3.21533,3110.1,3109.8,1.65500088]
[1732084319889,3.21543,3110.0,3109.8,1.65500088]
[1732084320285,3.21525,3110.2,3109.8,1.65500088]
[1732084320697,3.21534,3110.1,3109.8,1.65500088]
[1732084321033,3.21525,3110.2,3109.8,1.65500088]
[1732084321595,3.21534,3110.1,3109.8,1.65500088]
[1732084321790,3.21534,3110.1,3109.8,1.3221]
[1732084323840,3.21533,3110.1,3109.8,1.3221]
[1732084324841,3.21525,3110.2,3109.8,1.3221]
[1732084325203,3.21502,3110.4,3109.8,1.3221]
[1732084325422,3.21488,3110.6,3110.0,3.55]
[1732084325631,3.21488,3110.6,3110.0,3.76541]
[1732084325810,3.21488,3110.6,3109.9,0.55]
[1732084326147,3.21505,3110.4,3110.0,0.06404056]
[1732084326437,3.21505,3110.4,3110.1,0.55]
[1732084326795,3.21505,3110.4,3110.3,0.55]
[1732084327235,3.21505,3110.4,3110.3,0.06398009]
[1732084327637,3.21522,3110.2,3109.8,0.7721]
[1732084327816,3.21522,3110.2,3109.9,0.55]
[1732084328023,3.21522,3110.2,3109.9,0.61405797]
[1732084328523,3.99888,3110.7,3110.1,0.55]
[1732084328743,3.21478,3110.7,3110.3,0.55]
[1732084328945,0.7841,3111.1,3110.5,0.55]
[1732084329259,6.42958,3110.7,3110.5,0.55]
[1732084329425,6.42958,3110.7,3110.6,0.06391771]
[1732084329913,3.21454,3110.9,3110.6,0.06391771]
[1732084330118,3.21454,3110.9,3110.5,0.55]
[1732084330315,3.2148,3110.7,3110.6,0.06391496]
[1732084330652,3.21461,3110.8,3110.2,3.76516]
[1732084330837,3.21461,3110.8,3110.6,0.06391496]
[1732084331149,3.21461,3110.8,3110.7,0.06389481]
[1732084331321,3.21461,3110.8,3110.3,3.0]
[1732084331322,3.21461,3110.8,3110.4,0.55]
[1732084331530,3.21461,3110.8,3110.5,0.06393382]
[1732084331734,3.99844,3111.1,3110.5,0.06393382]
[1732084331735,3.21447,3111.0,3110.6,0.55]
[1732084331937,3.21451,3110.9,3110.8,0.55]
[1732084332156,3.21451,3110.9,3110.8,0.61387337]
[1732084334163,4.743505,3110.9,3110.8,0.06387337]
[1732084334661,3.21508,3110.4,3109.9,3.7953]
[1732084334972,3.21508,3110.4,3110.0,0.0640194]
[1732084335179,3.21508,3110.4,3110.0,0.77151334]
[1732084335761,3.21508,3110.4,3110.1,0.55]
[1732084336078,3.21484,3110.6,3110.1,0.55]
[1732084336371,3.21484,3110.6,3110.3,0.55]
[1732084336533,3.21502,3110.4,3110.3,0.55]
[1732084336729,3.21502,3110.4,3110.3,0.61395894]
[1732084337381,3.21484,3110.6,3110.3,0.61395894]
[1732084337382,6.42974,3110.6,3110.3,0.61395894]
[1732084337936,0.8077,3110.9,3110.3,0.61395894]
[1732084338138,3.21484,3110.6,3110.3,0.61395894]
[1732084338635,6.42975,3110.6,3110.3,0.61395894]
[1732084338838,6.42974,3110.6,3110.3,0.61395894]
[1732084339377,3.21484,3110.6,3110.3,0.61395894]
[1732084341351,3.21464,3110.8,3110.3,0.61395894]
[1732084341741,3.21472,3110.7,3110.3,0.61395894]
[1732084342151,0.8077,3110.9,3110.5,0.55]
[1732084342367,3.21443,3111.0,3110.6,0.06389849]
[1732084342569,3.21424,3111.2,3110.8,0.8274]
[1732084342758,3.21399,3111.4,3110.9,0.55]
[1732084342951,3.21399,3111.4,3111.0,0.0638179]
[1732084343375,6.42806,3111.4,3111.0,0.0638179]
[1732084343673,3.21399,3111.4,3111.0,0.0638179]
[1732084343888,3.21409,3111.3,3111.0,0.0638179]
[1732084344581,3.21419,3111.2,3111.0,0.0638179]
[1732084344773,3.21419,3111.2,3111.0,0.6138179]
[1732084344940,3.21419,3111.2,3111.0,0.0638179]
[1732084344941,3.21429,3111.1,3111.0,0.0638179]
[1732084345141,3.21429,3111.1,3110.7,0.55]
[1732084345484,3.21429,3111.1,3110.8,0.06385256]
[1732084345776,3.21429,3111.1,3110.7,0.55]
[1732084345979,3.21429,3111.1,3110.9,0.06383241]
[1732084346181,3.98929,3111.2,3110.8,0.06385256]
[1732084346182,3.2144,3111.0,3110.8,0.06385256]
[1732084346342,3.2144,3111.0,3110.7,0.55]
[1732084350279,3.2145,3110.9,3110.7,0.55]
[1732084350680,3.2144,3111.0,3110.7,0.55]
[1732084350891,3.21455,3110.9,3110.7,0.55]
[1732084354685,3.21431,3111.1,3110.7,0.98774]
[1732084354996,3.21431,3111.1,3110.7,3.98774]
[1732084356399,3.21431,3111.1,3110.9,0.55]
[1732084356956,3.21431,3111.1,3111.0,0.06380953]
[1732084364418,3.934662,3111.1,3111.0,0.06380953]
[1732084364792,0.720352,3111.1,3110.4,0.55]
[1732084364976,3.21516,3110.3,3110.0,0.8155]
[1732084365179,1.33765907,3111.0,3110.0,0.8155]
[1732084365180,3.21482,3110.6,3110.0,0.8155]
[1732084365413,3.21502,3110.4,3110.0,0.8155]
[1732084365619,3.21502,3110.4,3110.0,3.8155]
[1732084366401,3.21482,3110.6,3110.0,3.8155]
[1732084366583,3.21492,3110.5,3110.2,0.55]
[1732084367116,3.21492,3110.5,3110.0,0.8155]
[1732084367117,3.21492,3110.5,3110.1,0.55]
[1732084367732,3.21507,3110.4,3110.1,0.55]
[1732084368030,6.43017,3110.4,3110.1,0.55]
[1732084368737,3.21512,3110.3,3110.1,0.55]
[1732084369483,3.21486,3110.6,3110.1,0.55]
[1732084369692,3.21503,3110.4,3110.1,0.55]
[1732084370421,3.21522,3110.2,3110.1,0.55]
[1732084370583,3.21549,3110.0,3109.7,0.55]
[1732084371031,3.21501,3110.5,3110.0,0.8155]
[1732084371232,3.21522,3110.2,3110.1,1.06531591]
[1732084371529,3.21522,3110.2,3110.1,0.61395535]
[1732084373440,3.21522,3110.2,3110.1,0.85334356]
[1732084375841,3.21522,3110.2,3110.1,0.30329011]
[1732084376227,4.260895,3110.2,3110.1,0.06395535]
[1732084376396,3.21551,3110.0,3109.8,0.55]
[1732084376597,3.21553,3109.9,3109.8,0.55]
[1732084376897,3.21553,3109.9,3109.8,0.78935696]
[1732084377292,3.21553,3109.9,3109.8,0.23935696]
[1732084378097,3.21581,3109.7,3109.5,0.8155]
[1732084378297,3.21581,3109.7,3109.6,0.23928949]
[1732084381133,3.940084,3109.7,3109.6,0.23928949]
[1732084381344,3.940084,3109.7,3109.0,0.8155]
[1732084381345,0.724274,3109.7,3109.0,0.8155]
[1732084381509,0.8114,3109.8,3109.0,0.7655]
[1732084381510,3.21592,3109.6,3109.0,0.7655]
[1732084381717,3.21605,3109.4,3109.0,0.7655]
[1732084382543,3.21605,3109.4,3109.1,0.23927154]
[1732084382752,3.21605,3109.4,3109.2,0.23927154]
[1732084382905,3.21615,3109.3,3109.1,0.55]
[1732084383252,3.21615,3109.3,3109.2,0.23908991]
[1732084384002,3.21601,3109.5,3109.2,0.23908991]
[1732084384304,3.21601,3109.5,3109.1,0.55]
[1732084384305,3.21601,3109.5,3109.3,0.23908991]
[1732084384501,3.21601,3109.5,3109.1,0.55]
[1732084384803,3.21601,3109.5,3109.2,0.23901782]
[1732084385008,6.43205,3109.5,3109.1,0.55]
[1732084385233,3.21601,3109.5,3109.2,0.23904545]
[1732084385537,3.21601,3109.5,3109.1,0.55]
[1732084385538,6.43206,3109.5,3109.1,0.55]
[1732084385747,3.21605,3109.4,3109.2,0.23900429]
[1732084386054,3.21605,3109.4,3109.3,0.23902018]
[1732084386262,3.21605,3109.4,3109.3,0.06426906]
[1732084386421,3.21605,3109.4,3109.3,0.30328462]
[1732084386605,3.21605,3109.4,3109.1,0.55]
[1732084386962,3.21605,3109.4,3109.2,0.06428923]
[1732084388118,0.8114,3109.8,3109.3,0.55]
[1732084388448,3.21554,3109.9,3109.5,0.55]
[1732084388617,4.02678,3110.1,3109.5,0.55]
[1732084388946,4.02678,3110.1,3109.6,0.06421857]
[1732084388947,4.429458,3110.1,3109.6,0.06421857]
[1732084389248,3.21538,3110.1,3109.7,0.55]
[1732084389622,3.21538,3110.1,3109.8,0.06417824]
[1732084389810,3.21538,3110.1,3109.9,0.55]
[1732084390013,3.21538,3110.1,3110.0,0.06413792]
[1732084390211,3.21538,3110.1,3109.7,0.55]
[1732084390449,3.21538,3110.1,3109.9,0.55]
[1732084390749,3.21538,3110.1,3109.9,0.5]
[1732084390911,3.21538,3110.1,3110.0,0.06413792]
[1732084392009,3.21516,3110.3,3110.0,0.06413792]
[1732084392707,3.21529,3110.2,3110.0,0.06413792]
[1732084393450,3.21533,3110.1,3110.0,0.06413792]
[1732084396835,3.21556,3109.9,3109.6,0.55]
[1732084398448,3.21533,3110.1,3109.6,0.55]
[1732084399028,3.2158,3109.7,3109.5,0.8325]
[1732084399223,6.43164,3109.7,3109.1,0.55]
[1732084399431,3.2158,3109.7,3109.1,1.759148]
[1732084400252,6.43163,3109.7,3109.3,0.55]
[1732084400553,3.2158,3109.7,3109.3,0.55]
[1732084400716,3.21596,3109.5,3109.2,0.55]
[1732084401340,3.21596,3109.5,3109.3,0.06428216]
[1732084401660,3.21582,3109.7,3109.1,3.8325]
[1732084401949,3.21582,3109.7,3109.4,0.0642628]
[1732084402161,3.21591,3109.6,3109.1,3.8325]
[1732084402630,3.21595,3109.5,3109.2,0.06430314]
[1732084403218,3.21582,3109.7,3109.2,0.06430314]
[1732084403447,0.7721,3109.8,3109.2,0.06430314]
[1732084403644,3.21574,3109.7,3109.2,0.06430314]
[1732084403818,3.21595,3109.5,3109.2,0.06430314]
[1732084404885,3.21574,3109.7,3109.2,0.06430314]
[1732084405162,3.21591,3109.6,3109.2,0.06430314]
[1732084406015,3.21574,3109.7,3109.2,0.06430314]
[1732084406219,6.43201,3109.5,3109.2,0.06430314]
[1732084406442,3.21611,3109.4,3109.2,0.06430314]
[1732084408260,3.21615,3109.3,3109.2,0.61430314]
[1732084408471,3.21611,3109.4,3109.2,0.61430314]
[1732084409464,3.21615,3109.3,3109.2,0.61430314]
[1732084409761,3.21611,3109.4,3109.2,0.61430314]
[1732084411126,3.21588,3109.6,3109.2,0.61430314]
[1732084411373,3.21575,3109.7,3109.2,3.83056314]
[1732084411675,3.614529,3109.7,3109.2,3.83056314]
[1732084412322,3.21553,3109.9,3109.3,4.56289]
[1732084412527,3.21547,3110.0,3109.5,3.55]
[1732084412927,3.21547,3110.0,3109.6,0.06423376]
[1732084412928,3.21564,3109.8,3109.6,0.06423376]
[1732084415227,3.21546,3110.0,3109.6,0.06423376]
[1732084415427,3.21555,3109.9,3109.6,0.06423376]
[1732084415628,3.21546,3110.0,3109.6,0.06423376]
[1732084416025,3.21554,3109.9,3109.6,0.06423376]
[1732084419172,3.21534,3110.1,3109.7,1.3468]
[1732084419473,3.21515,3110.3,3109.9,0.55]
[1732084419973,3.21515,3110.3,3110.0,0.06414618]
[1732084421656,3.21524,3110.2,3110.0,0.06414618]
[1732084422061,3.21511,3110.4,3110.0,0.06414618]
[1732084422247,3.21515,3110.3,3110.0,0.06414618]
[1732084425943,3.21515,3110.3,3110.1,0.7818]
[1732084426340,3.21515,3110.3,3110.2,0.06410587]
[1732084427487,3.21497,3110.5,3110.2,0.06410587]
[1732084428854,3.21508,3110.4,3110.2,0.06410587]
[1732084430373,3.21512,3110.3,3110.2,0.06410587]
[1732084430584,3.858129,3110.3,3110.2,0.06410587]
[1732084430765,4.668029,3110.3,3110.2,0.06410587]
[1732084430934,4.668029,3110.3,3109.8,0.55]
[1732084431139,4.02502,3110.3,3109.8,0.55]
[1732084431369,3.21531,3110.2,3109.8,0.55]
[1732084431590,3.21531,3110.2,3109.9,0.06191399]
[1732084432234,3.21533,3110.1,3109.9,0.06191399]
[1732084432440,3.21543,3110.0,3109.7,0.7818]
[1732084432638,3.21543,3110.0,3109.8,0.06193415]
[1732084432885,3.21543,3110.0,3109.7,0.7818]
[1732084433070,3.21543,3110.0,3109.9,0.06191399]
[1732084433298,3.21543,3110.0,3109.8,0.06193415]
[1732084433615,3.21543,3110.0,3109.9,0.06191399]
[1732084433775,3.21543,3110.0,3109.7,0.7818]
[1732084433975,3.21543,3110.0,3109.8,0.06193415]
[1732084434189,3.21543,3110.0,3109.7,0.7818]
[1732084434384,3.21543,3110.0,3109.8,0.06193415]
[1732084434617,3.21533,3110.1,3109.6,0.55]
[1732084434618,3.21553,3109.9,3109.6,0.55]
[1732084434798,3.21553,3109.9,3109.7,0.06195431]
[1732084436308,3.21533,3110.1,3109.7,0.06195431]
[1732084437210,3.21533,3110.1,3109.8,0.55]
[1732084437412,3.21533,3110.1,3109.9,0.06191399]
[1732084440317,3.21543,3110.0,3109.9,0.06191399]
[1732084441013,3.21533,3110.1,3109.6,0.55]
[1732084441191,3.21555,3109.9,3109.7,0.06195431]
[1732084443178,6.43116,3109.9,3109.7,0.06195431]
[1732084443380,3.21555,3109.9,3109.7,0.06195431]
[1732084443892,3.21564,3109.8,3109.7,0.06195431]
[1732084446691,3.21564,3109.8,3109.7,0.24001293]
[1732084446990,3.21564,3109.8,3109.7,0.3019798]
[1732084447536,3.939739,3109.8,3109.7,0.3019759]
[1732084447889,3.939739,3109.8,3109.7,0.06196687]
[1732084448089,3.21606,3109.4,3109.1,0.55]
[1732084448596,3.21615,3109.3,3109.2,0.06212588]
[1732084448800,0.8099,3109.4,3109.2,0.06212588]
[1732084450201,4.02596,3109.4,3109.2,0.06212588]
[1732084450396,3.21615,3109.3,3109.2,0.06212588]
[1732084450637,3.21615,3109.3,3108.9,0.7818]
[1732084450842,3.21615,3109.3,3109.0,0.06217249]
[1732084451215,3.2162,3109.3,3109.0,0.06217249]
[1732084452621,3.21626,3109.2,3109.0,0.06217249]
[1732084452940,3.2162,3109.3,3109.0,0.06217249]
[1732084454014,4.02599,3109.4,3109.0,0.06217249]
[1732084456743,3.21627,3109.2,3109.0,0.06217249]
[1732084457123,4.02599,3109.4,3109.0,0.06217249]
[1732084457124,3.21616,3109.3,3109.0,0.06217249]
[1732084458207,3.21627,3109.2,3109.0,0.06217249]
[1732084458327,3.21616,3109.3,3109.0,0.06217249]
[1732084458740,3.21633,3109.2,3109.0,0.06217249]
[1732084459352,4.02602,3109.4,3109.0,0.06217249]
[1732084460213,3.21606,3109.4,3109.0,0.06217249]
[1732084460951,3.21616,3109.3,3109.0,0.06217249]
[1732084461457,3.216,3109.5,3109.0,0.06217249]
[1732084461620,3.61808,3109.5,3109.0,0.06217249]
[1732084462133,0.40208,3109.5,3109.0,0.06217249]
[1732084462451,3.21628,3109.2,3109.0,0.06217249]
[1732084463459,3.21609,3109.4,3109.0,0.06217249]
[1732084464312,4.0207,3109.6,3109.0,0.06217249]
[1732084464553,3.216,3109.5,3109.0,0.06217249]
[1732084465921,0.8048,3109.6,3109.0,0.06217249]
[1732084466120,4.422763,3109.6,3109.1,3.21635]
[1732084466367,3.21612,3109.4,3109.0,0.06217249]
[1732084466547,3.21615,3109.3,3109.2,0.06214286]
[1732084466856,4.422753,3109.6,3108.9,3.7818]
[1732084467153,4.422753,3109.6,3109.0,0.06218353]
[1732084467357,3.21605,3109.4,3109.0,0.06218353]
[1732084468264,3.21622,3109.3,3109.0,0.06218353]
[1732084468418,3.21605,3109.4,3109.0,0.06218353]
[1732084468419,3.21628,3109.2,3109.0,0.06218353]
[1732084473573,3.21605,3109.4,3109.0,0.06218353]
[1732084473922,3.21618,3109.3,3109.0,0.06218353]
[1732084474721,3.21605,3109.4,3109.0,0.06218353]
[1732084475322,2.10669803,3109.4,3109.0,0.06218353]
[1732084475651,2.10669803,3109.4,3108.6,0.8195]
[1732084475652,3.21636,3109.1,3108.6,0.8195]
[1732084475833,0.02,3109.8,3108.6,0.8195]
[1732084475834,3.21601,3109.5,3108.9,3.21656]
[1732084476023,6.43205,3109.5,3109.0,0.8796287]
[1732084476225,3.97482,3109.6,3109.0,0.8796287]
[1732084476424,3.935009,3109.5,3109.0,0.8796287]
[1732084476824,0.719059,3109.5,3109.1,3.21629]
[1732084477060,0.7589,3109.6,3109.1,0.06010853]
[1732084477266,3.97476,3109.6,3109.1,0.06010853]
[1732084477473,3.21596,3109.5,3109.1,0.06010853]
[1732084477679,3.21605,3109.4,3109.1,0.06010853]
[1732084477965,3.21596,3109.5,3109.1,0.06010853]
[1732084478331,6.43162,3109.7,3109.1,0.46971938]
[1732084478870,3.21587,3109.6,3109.1,3.68605938]
[1732084479221,3.21576,3109.7,3109.1,3.68598938]
[1732084479644,3.21576,3109.7,3109.2,0.8195]
[1732084479935,0.7589,3109.9,3109.3,3.27620819]
[1732084480263,3.97452,3109.9,3109.3,3.27620819]
[1732084480679,3.21564,3109.8,3109.3,3.27620819]
[1732084481532,0.7589,3109.9,3109.4,3.21599]
[1732084481751,6.4155,3110.0,3109.4,3.21599]
[1732084482050,3.2,3110.0,3109.6,0.7695]
[1732084482377,3.2,3110.0,3109.7,0.05998752]
[1732084483564,3.21523,3110.2,3109.7,0.05998752]
[1732084484876,3.21535,3110.1,3109.7,0.05998752]
[1732084485072,3.21523,3110.2,3109.7,0.05998752]
[1732084485399,3.21535,3110.1,3109.7,0.05998752]
[1732084489914,3.21544,3110.0,3109.7,0.05998752]
[1732084490267,4.0035,3109.9,3109.3,0.7695]
[1732084490492,4.0035,3109.9,3109.4,0.06004382]
[1732084490865,3.21565,3109.8,3109.4,0.06004382]
[1732084491174,3.21585,3109.6,3109.4,0.06004382]
[1732084491566,3.21585,3109.6,3109.1,0.7695]
[1732084491765,3.21585,3109.6,3109.5,0.06002365]
[1732084491968,3.21585,3109.6,3109.1,0.7695]
[1732084492188,3.21585,3109.6,3109.5,0.05842122]
[1732084492392,3.21585,3109.6,3109.1,0.7695]
[1732084492393,3.21606,3109.4,3109.1,0.7695]
[1732084492703,3.21606,3109.4,3108.9,0.7695]
[1732084494079,6.43219,3109.4,3108.9,0.7695]
[1732084494892,6.43219,3109.4,3108.6,3.21684]
[1732084494893,3.21622,3109.3,3108.7,3.0]
[1732084495107,3.21622,3109.3,3108.7,7.929638]
[1732084495878,3.21613,3109.4,3108.9,3.0]
[1732084497727,6.43227,3109.4,3108.9,3.0]
[1732084498611,3.21613,3109.4,3108.9,6.21653]
[1732084498927,4.00387,3109.5,3109.0,0.943311]
[1732084499506,3.21607,3109.4,3109.0,0.943311]
[1732084500399,3.21607,3109.4,3108.9,6.21653]
[1732084500798,3.21607,3109.4,3108.8,3.0]
[1732084501015,3.21607,3109.4,3108.8,6.21664]
[1732084501319,3.21616,3109.3,3108.8,6.21664]
[1732084502103,3.21556,3109.9,3109.0,3.21639]
[1732084502104,3.21587,3109.6,3109.0,3.21639]
[1732084502312,3.21596,3109.5,3109.0,3.21639]
[1732084502721,3.21596,3109.5,3108.9,0.7695]
[1732084502950,3.21607,3109.4,3108.9,0.7695]
[1732084503225,3.21616,3109.3,3108.9,0.7695]
[1732084504084,3.21607,3109.4,3108.9,0.7695]
[1732084505533,3.21619,3109.3,3108.9,0.7695]
[1732084505689,4.00409,3109.3,3108.9,0.7695]
[1732084506034,3.2163,3109.2,3108.7,3.7695]
[1732084506186,3.21637,3109.1,3109.0,0.05641868]
[1732084506393,3.21637,3109.1,3108.7,3.7695]
[1732084506587,3.21637,3109.1,3109.0,0.05640512]
[1732084506787,3.21637,3109.1,3108.7,3.7695]
[1732084507027,3.21637,3109.1,3109.0,0.05640512]
[1732084507232,3.21637,3109.1,3108.7,3.7695]
[1732084507401,3.21637,3109.1,3109.0,0.05640512]
[1732084507603,3.21637,3109.1,3108.7,3.7695]
[1732084507825,3.21637,3109.1,3109.0,0.05640512]
[1732084508136,3.21637,3109.1,3109.0,0.29618514]
[1732084508369,3.21637,3109.1,3109.0,0.23978002]
[1732084508643,3.21637,3109.1,3109.0,0.29618514]
[1732084508809,4.00415,3109.3,3109.0,0.29618514]
[1732084509009,3.21629,3109.2,3109.0,0.05640512]
[1732084509347,3.21629,3109.2,3108.7,3.7695]
[1732084509557,3.21629,3109.2,3109.1,0.05638495]
[1732084509708,3.21611,3109.4,3108.9,3.0]
[1732084510051,3.21623,3109.3,3109.0,1.06560985]
[1732084510417,3.21623,3109.3,3109.1,0.23970365]
[1732084510618,3.21623,3109.3,3109.0,0.8259062]
[1732084510823,3.21623,3109.3,3109.2,0.0563665]
[1732084511022,3.21623,3109.3,3109.1,0.05638667]
[1732084511225,3.21623,3109.3,3109.2,0.0563665]
[1732084511551,3.21623,3109.3,3109.0,0.7695]
[1732084511725,3.21623,3109.3,3109.2,0.0563665]
[1732084512046,4.0037,3109.7,3109.2,0.29610022]
[1732084512267,3.2159,3109.6,3109.2,0.29610022]
[1732084512470,4.0037,3109.7,3109.3,0.23973372]
[1732084512620,4.0037,3109.7,3109.2,0.0563665]
[1732084512824,4.0037,3109.7,3109.4,0.05635537]
[1732084513033,4.0037,3109.7,3109.3,0.05637553]
[1732084513260,4.0037,3109.7,3109.5,0.05633521]
[1732084513462,3.21595,3109.5,3109.4,0.05635537]
[1732084513638,3.21595,3109.5,3109.0,0.7695]
[1732084513958,3.21617,3109.3,3109.1,0.23985733]
[1732084514260,0.8193,3109.3,3108.8,3.0]
[1732084514462,4.03553,3109.3,3108.8,3.0]
[1732084514665,3.21627,3109.2,3108.8,3.0]
[1732084516726,3.21606,3109.4,3108.8,3.0]
[1732084517051,3.21606,3109.4,3108.9,0.7588]
[1732084517566,6.43219,3109.4,3108.9,0.7588]
[1732084517771,3.21606,3109.4,3108.9,0.7588]
[1732084517933,3.21616,3109.3,3108.9,0.7588]
[1732084521035,3.21616,3109.3,3108.6,0.7588]
[1732084521036,3.21645,3109.1,3108.6,0.7588]
[1732084521243,3.21645,3109.1,3109.0,0.05640599]
[1732084521665,3.21653,3109.0,3108.6,0.7588]
[1732084521968,3.97525,3109.1,3108.4,3.21703]
[1732084522179,3.21659,3108.9,3108.4,3.21703]
[1732084524088,3.21621,3109.3,3108.5,0.8094]
[1732084524255,3.21626,3109.2,3108.8,0.8094]
[1732084524462,3.537886,3109.2,3108.8,0.8094]
[1732084524773,3.21637,3109.1,3108.8,0.8094]
[1732084525550,6.43262,3109.2,3108.8,0.8094]
[1732084526455,3.21638,3109.1,3108.8,0.8094]
[1732084526692,3.21626,3109.2,3108.8,0.8094]
[1732084527274,3.21616,3109.3,3108.8,0.8094]
[1732084527451,3.21616,3109.3,3108.8,4.02605]
[1732084528164,3.21597,3109.5,3108.8,4.02605]
[1732084528391,3.21611,3109.4,3108.8,4.02605]
[1732084529577,3.21617,3109.3,3108.8,4.02605]
[1732084529777,3.21597,3109.5,3108.8,4.02605]
[1732084530101,3.21606,3109.4,3108.9,3.21652]
[1732084530251,3.21606,3109.4,3108.8,1.212005]
[1732084530977,3.21597,3109.5,3108.8,4.428645]
[1732084531277,3.21626,3109.2,3108.8,0.8094]
[1732084531657,3.21619,3109.3,3108.8,0.8094]
[1732084531869,6.43243,3109.3,3108.8,0.8094]
[1732084532481,2.0975955,3109.6,3108.8,0.8094]
[1732084532797,6.43282,3109.1,3108.8,0.8094]
[1732084533155,3.21637,3109.1,3108.8,0.8094]
[1732084533353,0.7987,3109.3,3108.3,7.01051]
[1732084533554,0.7987,3109.3,3108.3,8.033283]
[1732084533555,3.21663,3108.9,3108.3,8.033283]
[1732084533789,3.21663,3108.9,3108.3,7.01051]
[1732084536295,3.21663,3108.9,3108.4,0.11691942]
[1732084538082,3.21663,3108.9,3108.4,3.33396942]
[1732084538398,3.2164,3109.1,3108.6,4.01025]
[1732084538558,3.21632,3109.2,3108.6,4.74466294]
[1732084538757,3.21648,3109.0,3108.7,0.11685307]
[1732084539000,3.21663,3108.9,3108.7,0.11685307]
[1732084542596,3.21667,3108.8,3108.7,0.11685307]
[1732084551120,3.21688,3108.6,3108.3,0.827]
[1732084551332,2.1681955,3108.8,3108.3,0.827]
[1732084551517,3.21705,3108.5,3108.1,0.827]
[1732084552124,3.2173,3108.2,3107.9,0.7732]
[1732084552284,0.8285,3108.4,3107.6,0.7732]
[1732084552285,3.2175,3108.0,3107.6,0.7732]
[1732084552688,0.8285,3108.0,3107.6,0.7732]
[1732084553024,3.21769,3107.9,3107.6,0.7732]
[1732084553335,0.8285,3108.0,3107.6,0.7732]
[1732084553336,4.04609,3108.0,3107.6,0.7732]
[1732084553484,3.21761,3107.9,3107.6,0.7732]
[1732084553906,0.8285,3108.0,3107.6,0.7732]
[1732084554120,3.21743,3108.1,3107.6,0.7732]
[1732084554428,0.8285,3108.7,3107.8,0.7732]
[1732084554634,0.8285,3108.7,3107.9,3.21753]
[1732084554931,3.21694,3108.6,3108.0,0.7732]
[1732084555228,3.21694,3108.6,3108.0,3.99068]
[1732084555399,3.217,3108.5,3108.0,0.7732]
[1732084556404,3.2169,3108.6,3108.1,3.21737]
[1732084556931,3.21707,3108.5,3108.0,0.7732]
[1732084557230,4.04535,3108.7,3108.0,3.99062]
[1732084557436,3.21688,3108.6,3108.0,5.011435]
[1732084557641,3.21688,3108.6,3108.0,3.99062]
[1732084559041,4.04529,3108.7,3108.1,3.21733]
[1732084559192,4.04529,3108.7,3108.2,3.21727]
[1732084559838,0.8285,3108.7,3108.2,3.21727]